[Event "Titled Tuesday Blitz June 20 Late 2023"]
[White "Veiga, Jose Francisco R P Neves"]
[Black "Golubev, Mikhail"]
[WhiteFideId "1930087"]
[BlackFideId "14100983"]
[WhiteElo "2319"]
[BlackElo "2374"]
[Result "1/2-1/2"]
[Round "2"]
[TimeControl "180+2"]
[Date "2023.06.20"]
[WhiteClock "0:00:11"]
[BlackClock "0:00:03"]
[Board "62"]

1. e4 {[%clk 0:03:00]}  c5 {[%clk 0:02:59]} 2. Nf3 {[%clk 0:03:00]}  d6 {[%clk 0:02:59]} 3. Bb5+ {[%clk 0:03:00]}  Bd7 {[%clk 0:02:59]} 4. Bxd7+ {[%clk 0:02:59]}  Nxd7 {[%clk 0:03:00]} 5. c4 {[%clk 0:02:58]}  Ngf6 {[%clk 0:02:58]} 6. Nc3 {[%clk 0:02:58]}  Ne5 {[%clk 0:02:54]} 7. O-O {[%clk 0:02:47]}  Nxf3+ {[%clk 0:02:49]} 8. Qxf3 {[%clk 0:02:48]}  g6 {[%clk 0:02:50]} 9. b3 {[%clk 0:02:46]}  Bg7 {[%clk 0:02:49]} 10. Bb2 {[%clk 0:02:46]}  Nd7 {[%clk 0:02:41]} 11. d3 {[%clk 0:02:41]}  O-O {[%clk 0:02:41]} 12. Qe2 {[%clk 0:02:40]}  Ne5 {[%clk 0:02:31]} 13. Nd5 {[%clk 0:02:35]}  e6 {[%clk 0:02:29]} 14. Ne3 {[%clk 0:02:31]}  Nc6 {[%clk 0:02:25]} 15. Bxg7 {[%clk 0:02:30]}  Kxg7 {[%clk 0:02:26]} 16. f4 {[%clk 0:02:25]}  f5 {[%clk 0:02:12]} 17. exf5 {[%clk 0:02:20]}  gxf5 {[%clk 0:02:12]} 18. Rae1 {[%clk 0:02:07]}  Qf6 {[%clk 0:02:10]} 19. g3 {[%clk 0:02:01]}  Nd4 {[%clk 0:02:01]} 20. Qf2 {[%clk 0:01:58]}  h5 {[%clk 0:01:51]} 21. Nc2 {[%clk 0:01:55]}  Nxc2 {[%clk 0:01:48]} 22. Qxc2 {[%clk 0:01:56]}  h4 {[%clk 0:01:45]} 23. Qe2 {[%clk 0:01:55]}  hxg3 {[%clk 0:01:17]} 24. hxg3 {[%clk 0:01:56]}  Qd4+ {[%clk 0:01:13]} 25. Qe3 {[%clk 0:01:53]}  Qxe3+ {[%clk 0:01:11]} 26. Rxe3 {[%clk 0:01:54]}  Rf6 {[%clk 0:01:11]} 27. Kg2 {[%clk 0:01:53]}  Rh8 {[%clk 0:01:08]} 28. Rh1 {[%clk 0:01:52]}  Rxh1 {[%clk 0:01:07]} 29. Kxh1 {[%clk 0:01:53]}  Kf7 {[%clk 0:01:01]} 30. Kg2 {[%clk 0:01:53]}  Ke7 {[%clk 0:01:01]} 31. Re1 {[%clk 0:01:52]}  Rh6 {[%clk 0:00:59]} 32. a3 {[%clk 0:01:47]}  Rh8 {[%clk 0:00:57]} 33. b4 {[%clk 0:01:47]}  b6 {[%clk 0:00:55]} 34. Rb1 {[%clk 0:01:36]}  Kd7 {[%clk 0:00:45]} 35. Rd1 {[%clk 0:01:18]}  Ke7 {[%clk 0:00:44]} 36. d4 {[%clk 0:01:18]}  cxb4 {[%clk 0:00:41]} 37. axb4 {[%clk 0:01:18]}  Rc8 {[%clk 0:00:41]} 38. Rc1 {[%clk 0:01:14]}  a5 {[%clk 0:00:41]} 39. bxa5 {[%clk 0:01:14]}  bxa5 {[%clk 0:00:42]} 40. Kf3 {[%clk 0:01:11]}  Rb8 {[%clk 0:00:34]} 41. Ra1 {[%clk 0:01:10]}  Rb3+ {[%clk 0:00:33]} 42. Kf2 {[%clk 0:01:08]}  Rb4 {[%clk 0:00:29]} 43. Ke3 {[%clk 0:00:52]}  a4 {[%clk 0:00:28]} 44. Kd3 {[%clk 0:00:52]}  Rb3+ {[%clk 0:00:27]} 45. Kc2 {[%clk 0:00:53]}  Rxg3 {[%clk 0:00:26]} 46. Rxa4 {[%clk 0:00:52]}  Rf3 {[%clk 0:00:26]} 47. Ra7+ {[%clk 0:00:52]}  Kf6 {[%clk 0:00:24]} 48. Rd7 {[%clk 0:00:48]}  Rxf4 {[%clk 0:00:22]} 49. Rxd6 {[%clk 0:00:48]}  Ke7 {[%clk 0:00:20]} 50. c5 {[%clk 0:00:46]}  Rf3 {[%clk 0:00:20]} 51. Rb6 {[%clk 0:00:42]}  Kd7 {[%clk 0:00:16]} 52. Rd6+ {[%clk 0:00:40]}  Ke7 {[%clk 0:00:16]} 53. Ra6 {[%clk 0:00:40]}  Kd7 {[%clk 0:00:16]} 54. Kd2 {[%clk 0:00:40]}  f4 {[%clk 0:00:16]} 55. Rb6 {[%clk 0:00:18]}  Re3 {[%clk 0:00:15]} 56. Rb1 {[%clk 0:00:18]}  Re4 {[%clk 0:00:14]} 57. Kd3 {[%clk 0:00:17]}  Re3+ {[%clk 0:00:14]} 58. Kc4 {[%clk 0:00:17]}  f3 {[%clk 0:00:14]} 59. Rb7+ {[%clk 0:00:16]}  Kc6 {[%clk 0:00:14]} 60. Rf7 {[%clk 0:00:14]}  Ra3 {[%clk 0:00:13]} 61. Re7 {[%clk 0:00:08]}  Ra4+ {[%clk 0:00:12]} 62. Kd3 {[%clk 0:00:08]}  Ra3+ {[%clk 0:00:08]} 63. Ke4 {[%clk 0:00:08]}  Kb5 {[%clk 0:00:05]} 64. Rxe6 {[%clk 0:00:07]}  Kc4 {[%clk 0:00:05]} 65. Rf6 {[%clk 0:00:07]}  Rd3 {[%clk 0:00:05]} 66. c6 {[%clk 0:00:02]}  Rxd4+ {[%clk 0:00:05]} 67. Ke5 {[%clk 0:00:03]}  Rd5+ {[%clk 0:00:04]} 68. Ke6 {[%clk 0:00:04]}  Rc5 {[%clk 0:00:04]} 69. Kd7 {[%clk 0:00:04]}  Rd5+ {[%clk 0:00:04]} 70. Kc7 {[%clk 0:00:04]}  Rd3 {[%clk 0:00:04]} 71. Kb7 {[%clk 0:00:05]}  Rb3+ {[%clk 0:00:04]} 72. Kc8 {[%clk 0:00:05]}  Kc3 {[%clk 0:00:04]} 73. c7 {[%clk 0:00:06]}  Kc2 {[%clk 0:00:04]} 74. Kd8 {[%clk 0:00:06]}  Rd3+ {[%clk 0:00:04]} 75. Ke7 {[%clk 0:00:06]}  Rc3 {[%clk 0:00:04]} 76. Kd7 {[%clk 0:00:06]}  Rd3+ {[%clk 0:00:04]} 77. Rd6 {[%clk 0:00:07]}  Rc3 {[%clk 0:00:02]} 78. Rc6 {[%clk 0:00:07]}  Rxc6 {[%clk 0:00:02]} 79. Kxc6 {[%clk 0:00:08]}  f2 {[%clk 0:00:02]} 80. c8=Q {[%clk 0:00:08]}  f1=Q {[%clk 0:00:03]} 81. Kd7+ {[%clk 0:00:09]}  Kd2 {[%clk 0:00:04]} 82. Qc5 {[%clk 0:00:09]}  Qd3+ {[%clk 0:00:03]} 83. Ke7 {[%clk 0:00:10]}  Qe3+ {[%clk 0:00:03]} 84. Kd6 {[%clk 0:00:10]}  Qxc5+ {[%clk 0:00:03]} 85. Kxc5 {[%clk 0:00:11]} 1/2-1/2


[Site "https://www.chess.com"]

[Event "Titled Tuesday Blitz June 20 Late 2023"]
[White "Ozates, Tuna"]
[Black "Velikanov, Alexander"]
[WhiteFideId "6354521"]
[BlackFideId "2039290"]
[WhiteElo "2151"]
[BlackElo "2259"]
[Result "1-0"]
[Round "2"]
[TimeControl "180+2"]
[Date "2023.06.20"]
[WhiteClock "0:00:12"]
[BlackClock "0:00:16"]
[Board "63"]

1. e4 {[%clk 0:02:57]}  Nf6 {[%clk 0:02:59]} 2. e5 {[%clk 0:02:53]}  Nd5 {[%clk 0:02:58]} 3. d4 {[%clk 0:02:52]}  d6 {[%clk 0:02:58]} 4. c4 {[%clk 0:02:53]}  Nb6 {[%clk 0:02:58]} 5. exd6 {[%clk 0:02:54]}  exd6 {[%clk 0:02:55]} 6. Bd3 {[%clk 0:02:50]}  Nc6 {[%clk 0:02:53]} 7. Ne2 {[%clk 0:02:51]}  Be7 {[%clk 0:02:50]} 8. a3 {[%clk 0:02:51]}  Bg4 {[%clk 0:02:49]} 9. f3 {[%clk 0:02:51]}  Bh4+ {[%clk 0:02:48]} 10. g3 {[%clk 0:02:39]}  Bxf3 {[%clk 0:02:46]} 11. O-O {[%clk 0:02:39]}  Nxd4 {[%clk 0:02:05]} 12. gxh4 {[%clk 0:01:44]}  Qxh4 {[%clk 0:02:05]} 13. Qe1 {[%clk 0:01:39]}  Nxe2+ {[%clk 0:01:48]} 14. Bxe2 {[%clk 0:01:33]}  Qg4+ {[%clk 0:01:48]} 15. Kf2 {[%clk 0:01:32]}  Qg2+ {[%clk 0:01:44]} 16. Ke3 {[%clk 0:01:32]}  O-O {[%clk 0:00:39]} 17. Bxf3 {[%clk 0:01:12]}  Rfe8+ {[%clk 0:00:24]} 18. Kd3 {[%clk 0:00:48]}  Qxf3+ {[%clk 0:00:19]} 19. Rxf3 {[%clk 0:00:49]}  Rxe1 {[%clk 0:00:19]} 20. Be3 {[%clk 0:00:33]}  Re8 {[%clk 0:00:18]} 21. Bd4 {[%clk 0:00:16]}  Rd1+ {[%clk 0:00:12]} 22. Kc3 {[%clk 0:00:13]}  Ree1 {[%clk 0:00:07]} 23. Re3 {[%clk 0:00:12]}  Rxe3+ {[%clk 0:00:04]} 24. Bxe3 {[%clk 0:00:12]}  f5 {[%clk 0:00:05]} 25. Kc2 {[%clk 0:00:11]}  Rh1 {[%clk 0:00:04]} 26. b3 {[%clk 0:00:08]}  Rxh2+ {[%clk 0:00:04]} 27. Nd2 {[%clk 0:00:09]}  Rh3 {[%clk 0:00:05]} 28. Bd4 {[%clk 0:00:08]}  Nd7 {[%clk 0:00:05]} 29. Re1 {[%clk 0:00:08]}  Kf7 {[%clk 0:00:06]} 30. Bxg7 {[%clk 0:00:07]}  Nc5 {[%clk 0:00:04]} 31. Bd4 {[%clk 0:00:08]}  Ne6 {[%clk 0:00:04]} 32. Bxa7 {[%clk 0:00:07]}  b6 {[%clk 0:00:04]} 33. a4 {[%clk 0:00:08]}  h5 {[%clk 0:00:03]} 34. a5 {[%clk 0:00:08]}  bxa5 {[%clk 0:00:03]} 35. Ra1 {[%clk 0:00:08]}  Rh2 {[%clk 0:00:03]} 36. Rxa5 {[%clk 0:00:08]}  Ng5 {[%clk 0:00:04]} 37. Rxf5+ {[%clk 0:00:08]}  Kg6 {[%clk 0:00:04]} 38. Rf1 {[%clk 0:00:08]}  Ne4 {[%clk 0:00:04]} 39. Be3 {[%clk 0:00:08]}  h4 {[%clk 0:00:04]} 40. Kd3 {[%clk 0:00:07]}  Nf6 {[%clk 0:00:04]} 41. Ne4 {[%clk 0:00:06]}  Ng4 {[%clk 0:00:02]} 42. Rg1 {[%clk 0:00:05]}  Kh5 {[%clk 0:00:03]} 43. Bf4 {[%clk 0:00:04]}  Rh3+ {[%clk 0:00:03]} 44. Kd4 {[%clk 0:00:04]}  Rf3 {[%clk 0:00:03]} 45. Bd2 {[%clk 0:00:03]}  Ne5 {[%clk 0:00:03]} 46. Rg5+ {[%clk 0:00:03]}  Kh6 {[%clk 0:00:03]} 47. Rxe5+ {[%clk 0:00:04]}  Kh7 {[%clk 0:00:03]} 48. Ng5+ {[%clk 0:00:03]}  Kg8 {[%clk 0:00:03]} 49. Nxf3 {[%clk 0:00:04]}  dxe5+ {[%clk 0:00:04]} 50. Kxe5 {[%clk 0:00:05]}  h3 {[%clk 0:00:04]} 51. Nh2 {[%clk 0:00:05]}  Kf7 {[%clk 0:00:04]} 52. b4 {[%clk 0:00:06]}  Ke7 {[%clk 0:00:05]} 53. c5 {[%clk 0:00:07]}  Kd7 {[%clk 0:00:06]} 54. Kd5 {[%clk 0:00:07]}  Kc8 {[%clk 0:00:07]} 55. c6 {[%clk 0:00:08]}  Kd8 {[%clk 0:00:07]} 56. Kc5 {[%clk 0:00:08]}  Kc8 {[%clk 0:00:08]} 57. b5 {[%clk 0:00:09]}  Kb8 {[%clk 0:00:09]} 58. Bf4 {[%clk 0:00:10]}  Kc8 {[%clk 0:00:09]} 59. Be5 {[%clk 0:00:11]}  Kb8 {[%clk 0:00:10]} 60. b6 {[%clk 0:00:10]}  Ka8 {[%clk 0:00:11]} 61. bxc7 {[%clk 0:00:09]}  Ka7 {[%clk 0:00:11]} 62. Kd6 {[%clk 0:00:10]}  Ka6 {[%clk 0:00:12]} 63. c8=Q+ {[%clk 0:00:10]}  Kb6 {[%clk 0:00:13]} 64. Qb7+ {[%clk 0:00:11]}  Ka5 {[%clk 0:00:14]} 65. c7 {[%clk 0:00:11]}  Ka4 {[%clk 0:00:15]} 66. c8=Q {[%clk 0:00:12]}  Ka3 {[%clk 0:00:16]} 67. Qca8# {[%clk 0:00:12]} 1-0


[Site "https://www.chess.com"]

[Event "Titled Tuesday Blitz June 20 Late 2023"]
[White "Oro, Faustino"]
[Black "Mattheii"]
[WhiteFideId "20000197"]
[WhiteElo "1984"]
[BlackElo "2476"]
[Result "1-0"]
[Round "2"]
[TimeControl "180+2"]
[Date "2023.06.20"]
[WhiteClock "0:01:45"]
[BlackClock "0:00:34"]
[Board "65"]

1. Nf3 {[%clk 0:03:00]}  d5 {[%clk 0:02:58]} 2. e3 {[%clk 0:02:59]}  Nf6 {[%clk 0:02:58]} 3. b3 {[%clk 0:02:59]}  c5 {[%clk 0:02:50]} 4. Bb2 {[%clk 0:02:59]}  Nc6 {[%clk 0:02:51]} 5. Be2 {[%clk 0:02:56]}  Bg4 {[%clk 0:02:42]} 6. d4 {[%clk 0:02:52]}  e6 {[%clk 0:02:41]} 7. O-O {[%clk 0:02:52]}  cxd4 {[%clk 0:02:40]} 8. Nxd4 {[%clk 0:02:52]}  Bxe2 {[%clk 0:02:40]} 9. Qxe2 {[%clk 0:02:53]}  Be7 {[%clk 0:02:40]} 10. Nd2 {[%clk 0:02:51]}  O-O {[%clk 0:02:39]} 11. c4 {[%clk 0:02:52]}  Qa5 {[%clk 0:02:26]} 12. N2f3 {[%clk 0:02:41]}  Rfd8 {[%clk 0:02:25]} 13. Rfd1 {[%clk 0:02:40]}  Rac8 {[%clk 0:02:15]} 14. cxd5 {[%clk 0:02:26]}  Qxd5 {[%clk 0:01:50]} 15. h3 {[%clk 0:02:04]}  h6 {[%clk 0:01:47]} 16. Rac1 {[%clk 0:02:01]}  Qe4 {[%clk 0:01:46]} 17. Nb5 {[%clk 0:01:50]}  a6 {[%clk 0:01:37]} 18. Bxf6 {[%clk 0:01:50]}  axb5 {[%clk 0:01:02]} 19. Bxe7 {[%clk 0:01:46]}  Rxd1+ {[%clk 0:00:35]} 20. Qxd1 {[%clk 0:01:45]}  Nxe7 {[%clk 0:00:34]} 21. Rxc8+ {[%clk 0:01:45]} 1-0


[Site "https://www.chess.com"]

[Event "Titled Tuesday Blitz June 20 Late 2023"]
[White "Darini, Pouria"]
[Black "Balla, Tamas-Kristof"]
[WhiteFideId "12502200"]
[BlackFideId "1208497"]
[WhiteElo "2482"]
[BlackElo "2334"]
[Result "1-0"]
[Round "2"]
[TimeControl "180+2"]
[Date "2023.06.20"]
[WhiteClock "0:00:31"]
[BlackClock "0:00:02"]
[Board "66"]

1. e4 {[%clk 0:03:00]}  c5 {[%clk 0:02:59]} 2. Nf3 {[%clk 0:03:01]}  Nc6 {[%clk 0:03:00]} 3. Bb5 {[%clk 0:03:00]}  Nf6 {[%clk 0:03:00]} 4. d3 {[%clk 0:03:00]}  g6 {[%clk 0:02:59]} 5. Be3 {[%clk 0:02:58]}  b6 {[%clk 0:02:44]} 6. a4 {[%clk 0:02:57]}  a5 {[%clk 0:02:41]} 7. Qd2 {[%clk 0:02:40]}  Bg7 {[%clk 0:02:37]} 8. Bxc6 {[%clk 0:02:36]}  dxc6 {[%clk 0:02:37]} 9. Bh6 {[%clk 0:02:37]}  O-O {[%clk 0:02:34]} 10. O-O {[%clk 0:02:36]}  Nh5 {[%clk 0:02:17]} 11. h3 {[%clk 0:02:30]}  Re8 {[%clk 0:02:13]} 12. Bxg7 {[%clk 0:02:15]}  Nxg7 {[%clk 0:02:14]} 13. Nc3 {[%clk 0:02:02]}  e5 {[%clk 0:02:13]} 14. Nh2 {[%clk 0:01:55]}  Ne6 {[%clk 0:02:10]} 15. b3 {[%clk 0:01:50]}  Nf4 {[%clk 0:02:03]} 16. Ne2 {[%clk 0:01:50]}  Nxe2+ {[%clk 0:01:23]} 17. Qxe2 {[%clk 0:01:51]}  Be6 {[%clk 0:01:24]} 18. Qe3 {[%clk 0:01:37]}  Qc7 {[%clk 0:01:22]} 19. Ng4 {[%clk 0:01:20]}  Bxg4 {[%clk 0:01:21]} 20. hxg4 {[%clk 0:01:21]}  Rad8 {[%clk 0:01:16]} 21. g3 {[%clk 0:01:21]}  Qd7 {[%clk 0:01:12]} 22. Qf3 {[%clk 0:01:21]}  Qe6 {[%clk 0:01:12]} 23. Kg2 {[%clk 0:01:21]}  Kg7 {[%clk 0:01:05]} 24. Rh1 {[%clk 0:01:21]}  f6 {[%clk 0:00:55]} 25. Rh4 {[%clk 0:01:19]}  Rd7 {[%clk 0:00:49]} 26. Rah1 {[%clk 0:01:19]}  Kg8 {[%clk 0:00:50]} 27. Qe3 {[%clk 0:01:17]}  Rg7 {[%clk 0:00:46]} 28. f3 {[%clk 0:01:10]}  Qd7 {[%clk 0:00:40]} 29. Kf2 {[%clk 0:00:50]}  Qe6 {[%clk 0:00:40]} 30. Ke2 {[%clk 0:00:50]}  Qd7 {[%clk 0:00:38]} 31. Kd2 {[%clk 0:00:48]}  Qe6 {[%clk 0:00:39]} 32. Kc1 {[%clk 0:00:46]}  Qd7 {[%clk 0:00:37]} 33. f4 {[%clk 0:00:46]}  exf4 {[%clk 0:00:37]} 34. gxf4 {[%clk 0:00:46]}  g5 {[%clk 0:00:28]} 35. Rh6 {[%clk 0:00:40]}  Qxg4 {[%clk 0:00:13]} 36. Rxf6 {[%clk 0:00:40]}  gxf4 {[%clk 0:00:12]} 37. Rxf4 {[%clk 0:00:40]}  Qg5 {[%clk 0:00:11]} 38. Rhf1 {[%clk 0:00:35]}  h5 {[%clk 0:00:10]} 39. Kb1 {[%clk 0:00:34]}  Re6 {[%clk 0:00:08]} 40. Qh3 {[%clk 0:00:34]}  Rh6 {[%clk 0:00:06]} 41. Rf8+ {[%clk 0:00:32]}  Kh7 {[%clk 0:00:07]} 42. Qc8 {[%clk 0:00:33]}  Rg8 {[%clk 0:00:06]} 43. R1f7+ {[%clk 0:00:31]}  Rg7 {[%clk 0:00:04]} 44. Rh8+ {[%clk 0:00:31]}  Kg6 {[%clk 0:00:02]} 45. Qe6+ {[%clk 0:00:31]} 1-0


[Site "https://www.chess.com"]

[Event "Titled Tuesday Blitz June 20 Late 2023"]
[White "Fiorito, Joaquin"]
[Black "Suarez Uriel, Adrian"]
[WhiteFideId "180173"]
[BlackFideId "22230874"]
[WhiteElo "2199"]
[BlackElo "2331"]
[Result "0-1"]
[Round "2"]
[TimeControl "180+2"]
[Date "2023.06.20"]
[WhiteClock "0:01:03"]
[BlackClock "0:01:07"]
[Board "68"]

1. d4 {[%clk 0:03:00]}  Nf6 {[%clk 0:03:00]} 2. c4 {[%clk 0:03:01]}  g6 {[%clk 0:03:00]} 3. Nc3 {[%clk 0:03:01]}  d5 {[%clk 0:02:56]} 4. Nf3 {[%clk 0:03:01]}  Bg7 {[%clk 0:02:56]} 5. h4 {[%clk 0:03:02]}  c6 {[%clk 0:02:53]} 6. cxd5 {[%clk 0:03:02]}  cxd5 {[%clk 0:02:53]} 7. Bf4 {[%clk 0:03:03]}  Nc6 {[%clk 0:02:47]} 8. e3 {[%clk 0:03:03]}  O-O {[%clk 0:02:46]} 9. Qb3 {[%clk 0:03:03]}  Na5 {[%clk 0:02:43]} 10. Qa3 {[%clk 0:03:03]}  Bf5 {[%clk 0:02:39]} 11. Be2 {[%clk 0:03:00]}  a6 {[%clk 0:02:35]} 12. Ne5 {[%clk 0:02:59]}  b5 {[%clk 0:02:31]} 13. b3 {[%clk 0:02:36]}  Rc8 {[%clk 0:02:24]} 14. Rc1 {[%clk 0:02:35]}  Qb6 {[%clk 0:02:11]} 15. O-O {[%clk 0:02:30]}  Rxc3 {[%clk 0:02:08]} 16. Qxe7 {[%clk 0:02:06]}  Rxc1 {[%clk 0:02:08]} 17. Rxc1 {[%clk 0:02:07]}  Be6 {[%clk 0:01:59]} 18. g4 {[%clk 0:02:03]}  Ne4 {[%clk 0:01:55]} 19. Nd3 {[%clk 0:01:49]}  Qd8 {[%clk 0:01:50]} 20. Qb4 {[%clk 0:01:48]}  Re8 {[%clk 0:01:45]} 21. Bc7 {[%clk 0:01:48]}  Qxh4 {[%clk 0:01:42]} 22. Bxa5 {[%clk 0:01:42]}  Bxg4 {[%clk 0:01:42]} 23. Qe1 {[%clk 0:01:37]}  Bxe2 {[%clk 0:01:41]} 24. Qxe2 {[%clk 0:01:38]}  Bh6 {[%clk 0:01:37]} 25. Be1 {[%clk 0:01:37]}  Qg5+ {[%clk 0:01:26]} 26. Kf1 {[%clk 0:01:38]}  Qf5 {[%clk 0:01:23]} 27. Qc2 {[%clk 0:01:21]}  Bxe3 {[%clk 0:01:19]} 28. Rd1 {[%clk 0:01:15]}  Bxd4 {[%clk 0:01:18]} 29. Nb4 {[%clk 0:01:13]}  Qh3+ {[%clk 0:01:13]} 30. Kg1 {[%clk 0:01:12]}  Ng5 {[%clk 0:01:08]} 31. Rd3 {[%clk 0:01:03]}  Rxe1# {[%clk 0:01:07]} 0-1


[Site "https://www.chess.com"]

[Event "Titled Tuesday Blitz June 20 Late 2023"]
[White "Paulsen, Dirk"]
[Black "Makridis, Dimitrios"]
[WhiteFideId "4601343"]
[BlackFideId "25864475"]
[WhiteElo "2339"]
[BlackElo "2277"]
[Result "0-1"]
[Round "2"]
[TimeControl "180+2"]
[Date "2023.06.20"]
[WhiteClock "0:00:00"]
[BlackClock "0:00:15"]
[Board "70"]

1. d4 {[%clk 0:03:00]}  Nf6 {[%clk 0:02:41]} 2. c4 {[%clk 0:02:58]}  e6 {[%clk 0:02:41]} 3. Nf3 {[%clk 0:02:57]}  Bb4+ {[%clk 0:02:40]} 4. Bd2 {[%clk 0:02:57]}  c5 {[%clk 0:02:40]} 5. Bxb4 {[%clk 0:02:57]}  cxb4 {[%clk 0:02:41]} 6. a3 {[%clk 0:02:57]}  bxa3 {[%clk 0:02:21]} 7. Rxa3 {[%clk 0:02:56]}  O-O {[%clk 0:02:22]} 8. Nc3 {[%clk 0:02:55]}  d5 {[%clk 0:02:20]} 9. c5 {[%clk 0:02:53]}  b6 {[%clk 0:02:17]} 10. b4 {[%clk 0:02:53]}  a5 {[%clk 0:02:12]} 11. e3 {[%clk 0:02:51]}  Bb7 {[%clk 0:02:10]} 12. b5 {[%clk 0:02:48]}  Qe7 {[%clk 0:02:06]} 13. Na4 {[%clk 0:02:48]}  Nbd7 {[%clk 0:02:06]} 14. Qc1 {[%clk 0:02:44]}  Ne4 {[%clk 0:01:53]} 15. c6 {[%clk 0:02:17]}  Qb4+ {[%clk 0:01:51]} 16. Nc3 {[%clk 0:02:17]}  Rac8 {[%clk 0:01:51]} 17. Bd3 {[%clk 0:02:16]}  Bxc6 {[%clk 0:01:50]} 18. bxc6 {[%clk 0:02:16]}  Rxc6 {[%clk 0:01:51]} 19. Bxe4 {[%clk 0:02:15]}  dxe4 {[%clk 0:01:52]} 20. Nd2 {[%clk 0:02:15]}  Rfc8 {[%clk 0:01:51]} 21. Ndb1 {[%clk 0:02:06]}  b5 {[%clk 0:01:32]} 22. O-O {[%clk 0:02:04]}  Qe7 {[%clk 0:01:25]} 23. Rxa5 {[%clk 0:01:51]}  b4 {[%clk 0:01:24]} 24. d5 {[%clk 0:01:32]}  Rc4 {[%clk 0:01:18]} 25. d6 {[%clk 0:01:27]}  Qxd6 {[%clk 0:01:10]} 26. Qd1 {[%clk 0:01:06]}  Qc7 {[%clk 0:01:01]} 27. Nd5 {[%clk 0:00:51]}  exd5 {[%clk 0:00:57]} 28. Rxd5 {[%clk 0:00:48]}  Nf6 {[%clk 0:00:56]} 29. Rd4 {[%clk 0:00:43]}  h6 {[%clk 0:00:55]} 30. Rxc4 {[%clk 0:00:35]}  Qxc4 {[%clk 0:00:56]} 31. Nd2 {[%clk 0:00:35]}  Qd3 {[%clk 0:00:54]} 32. Nb3 {[%clk 0:00:31]}  Rc3 {[%clk 0:00:53]} 33. Nd4 {[%clk 0:00:30]}  Qxd1 {[%clk 0:00:46]} 34. Rxd1 {[%clk 0:00:29]}  b3 {[%clk 0:00:47]} 35. Ne2 {[%clk 0:00:16]}  Rc2 {[%clk 0:00:44]} 36. Nd4 {[%clk 0:00:15]}  Rc3 {[%clk 0:00:36]} 37. Ne2 {[%clk 0:00:14]}  Rc4 {[%clk 0:00:36]} 38. Rb1 {[%clk 0:00:11]}  Rb4 {[%clk 0:00:29]} 39. Rb2 {[%clk 0:00:09]}  Nd7 {[%clk 0:00:26]} 40. Nd4 {[%clk 0:00:07]}  Nc5 {[%clk 0:00:26]} 41. Kf1 {[%clk 0:00:06]}  Na4 {[%clk 0:00:22]} 42. Rxb3 {[%clk 0:00:05]}  Rc4 {[%clk 0:00:20]} 43. h3 {[%clk 0:00:03]}  Rc1+ {[%clk 0:00:17]} 44. Ke2 {[%clk 0:00:00]}  Kh7 {[%clk 0:00:15]} 0-1


[Site "https://www.chess.com"]

[Event "Titled Tuesday Blitz June 20 Late 2023"]
[White "Carrasco Miranda, Andres"]
[Black "Turayev, Shahruh"]
[WhiteFideId "3405990"]
[BlackFideId "14003856"]
[WhiteElo "2183"]
[BlackElo "2113"]
[Result "0-1"]
[Round "2"]
[TimeControl "180+2"]
[Date "2023.06.20"]
[WhiteClock "0:00:00"]
[BlackClock "0:00:05"]
[Board "72"]

1. d4 {[%clk 0:02:57]}  d5 {[%clk 0:02:59]} 2. c4 {[%clk 0:02:56]}  e6 {[%clk 0:02:58]} 3. g3 {[%clk 0:02:56]}  Nf6 {[%clk 0:02:57]} 4. Bg2 {[%clk 0:02:55]}  dxc4 {[%clk 0:02:57]} 5. Nf3 {[%clk 0:02:55]}  Nc6 {[%clk 0:02:57]} 6. Qa4 {[%clk 0:02:47]}  Nd5 {[%clk 0:02:56]} 7. Qxc4 {[%clk 0:02:42]}  Nb6 {[%clk 0:02:54]} 8. Qd3 {[%clk 0:02:39]}  Be7 {[%clk 0:02:45]} 9. O-O {[%clk 0:02:38]}  O-O {[%clk 0:02:45]} 10. Nc3 {[%clk 0:02:35]}  e5 {[%clk 0:02:30]} 11. dxe5 {[%clk 0:02:31]}  Qxd3 {[%clk 0:02:30]} 12. exd3 {[%clk 0:02:32]}  Rd8 {[%clk 0:02:28]} 13. Rd1 {[%clk 0:01:53]}  Bg4 {[%clk 0:01:58]} 14. d4 {[%clk 0:01:31]}  Bxf3 {[%clk 0:01:22]} 15. Bxf3 {[%clk 0:01:32]}  Nxd4 {[%clk 0:01:22]} 16. Bxb7 {[%clk 0:01:27]}  Rab8 {[%clk 0:01:23]} 17. Be4 {[%clk 0:01:23]}  Nc4 {[%clk 0:01:21]} 18. Nd5 {[%clk 0:00:48]}  Bc5 {[%clk 0:00:59]} 19. b3 {[%clk 0:00:46]}  Nxe5 {[%clk 0:00:56]} 20. Bb2 {[%clk 0:00:32]}  Ndc6 {[%clk 0:00:12]} 21. Rac1 {[%clk 0:00:27]}  Bd6 {[%clk 0:00:12]} 22. f4 {[%clk 0:00:17]}  Ng4 {[%clk 0:00:05]} 23. Nxc7 {[%clk 0:00:13]}  Re8 {[%clk 0:00:05]} 24. Bxc6 {[%clk 0:00:13]}  Re2 {[%clk 0:00:04]} 25. Bf3 {[%clk 0:00:06]}  Rxb2 {[%clk 0:00:04]} 26. Bxg4 {[%clk 0:00:06]}  Bf8 {[%clk 0:00:02]} 27. Nd5 {[%clk 0:00:06]}  Rd8 {[%clk 0:00:02]} 28. Nf6+ {[%clk 0:00:04]}  gxf6 {[%clk 0:00:03]} 29. Rxd8 {[%clk 0:00:05]}  Kg7 {[%clk 0:00:04]} 30. h4 {[%clk 0:00:02]}  h6 {[%clk 0:00:04]} 31. Bf3 {[%clk 0:00:01]}  Bb4 {[%clk 0:00:05]} 32. Rd3 {[%clk 0:00:00]}  a5 {[%clk 0:00:05]} 0-1


[Site "https://www.chess.com"]